bitfinex/quotes_ETHUSD_20251119
["timestamp","ask_amount","ask_price","bid_price","bid_amount"]
[1763570150715,0.4762,2948.5,2946.6,0.75643838]
[1763570151018,1.37486033,2948.8,2946.9,0.90699264]
[1763570151019,0.70185751,2948.4,2946.9,0.90699264]
[1763570151223,0.88681594,2948.9,2946.9,0.90699264]
[1763570151428,0.70195272,2948.8,2946.9,0.90699264]
[1763570151595,1.37486033,2949.2,2946.4,0.90699264]
[1763570151596,0.7359168,2948.7,2946.4,0.90699264]
[1763570151799,0.7359168,2948.7,2945.8,3.80016758]
[1763570151800,1.58876866,2948.6,2946.1,0.90699264]
[1763570151998,1.62273274,2948.5,2946.2,0.8921549]
[1763570152324,0.70195272,2948.4,2946.2,0.8921549]
[1763570152525,1.39698002,2948.5,2946.2,0.8921549]
[1763570152526,0.70115272,2948.3,2946.2,0.8921549]
[1763570152821,0.1835,2948.3,2946.2,0.8921549]
[1763570153491,0.1835,2948.3,2946.1,0.8702876]
[1763570153798,7.48586038,2947.0,2946.2,0.90699264]
[1763570154324,7.48586038,2947.0,2945.0,1.02054874]
[1763570154629,4.07961215,2945.4,2945.0,1.02054874]
[1763570154829,0.405504,2947.8,2945.0,1.02054874]
[1763570154830,0.61578245,2945.5,2945.3,8.01455637]
[1763570154992,7.48586038,2946.9,2945.5,0.405504]
[1763570155325,7.48586038,2946.9,2946.0,8.01455637]
[1763570155509,7.48586038,2946.9,2946.2,0.90699264]
[1763570155713,7.48586038,2946.9,2946.1,0.90699264]
[1763570156128,7.48586038,2947.6,2946.1,0.90699264]
[1763570156488,7.48586038,2947.6,2945.9,7.69601614]
[1763570156787,7.48586038,2947.6,2946.0,8.01455637]
[1763570157324,7.48586038,2947.8,2946.0,8.01455637]
[1763570157728,7.48586038,2947.8,2946.2,0.90699264]
[1763570158433,7.48586038,2947.8,2946.3,1.02020169]
[1763570158434,0.405504,2947.6,2946.3,1.02020169]
[1763570158736,7.48586038,2947.1,2946.0,0.001]
[1763570158891,7.48586038,2947.1,2946.1,1.92734353]
[1763570159295,7.48586038,2947.1,2946.3,0.90699264]
[1763570159525,7.48586038,2948.2,2946.8,0.90699264]
[1763570159771,7.48586038,2948.2,2946.8,6.7870232]
[1763570159944,7.48586038,2948.2,2946.8,13.5740464]
[1763570160267,7.48586038,2949.2,2947.8,0.405504]
[1763570160447,9.21336663,2949.8,2948.4,8.01455637]
[1763570160646,9.21336663,2949.8,2946.9,0.405504]
[1763570160962,9.21336663,2949.8,2946.8,16.967558]
[1763570160963,9.21336663,2949.8,2948.1,8.01455637]
[1763570161168,7.48586038,2950.0,2949.6,8.01455637]
[1763570161328,9.21336663,2951.0,2949.7,0.405504]
[1763570161657,9.21336663,2951.0,2947.9,0.05]
[1763570161658,0.15,2951.2,2949.2,8.01455637]
[1763570161858,5.8317212,2950.4,2949.4,0.90699264]
[1763570162477,0.4762,2950.3,2947.5,8.01455637]
[1763570162633,5.8317212,2949.0,2948.1,0.90699264]
[1763570162820,4.08602869,2948.6,2948.2,0.405504]
[1763570163020,4.08602869,2948.6,2948.1,0.90699264]
[1763570163225,4.08602869,2948.5,2948.2,0.405504]
[1763570163765,4.08602869,2948.9,2947.9,8.01455637]
[1763570164062,2.92085978,2948.0,2947.9,8.01455637]
[1763570164421,5.8317212,2949.1,2947.9,8.01455637]
[1763570164620,0.70175145,2949.0,2948.4,8.01455637]
[1763570164821,5.8317212,2949.8,2948.9,8.01455637]
[1763570165069,0.70181178,2949.7,2949.6,8.01455637]
[1763570165569,0.70181178,2949.7,2949.3,8.01455637]
[1763570165726,5.8317212,2949.5,2949.4,3.3905201]
[1763570165927,6.53353298,2949.5,2949.4,3.3905201]
[1763570166129,9.21336663,2951.0,2949.4,3.3905201]
[1763570166130,9.21336663,2951.0,2949.4,20.3431206]
[1763570166371,9.21336663,2951.0,2950.8,8.01455637]
[1763570166552,13.82004994,2952.6,2950.8,8.01455637]
[1763570166757,0.002,2953.9,2951.6,8.01455637]
[1763570166972,0.78146697,2953.5,2950.8,8.01455637]
[1763570167374,0.78146697,2953.5,2950.6,8.01455637]
[1763570167375,0.51016408,2953.4,2950.6,8.01455637]
[1763570167559,0.78146697,2953.4,2950.6,8.01455637]
[1763570167894,0.78146697,2953.4,2949.2,0.05]
[1763570167895,3.94583297,2953.3,2949.1,8.01455637]
[1763570168055,3.94583297,2953.3,2949.2,7.18488932]
[1763570168056,0.405504,2952.6,2949.2,7.18488932]
[1763570168383,0.30526697,2952.5,2949.6,8.01455637]
[1763570168549,8.42006037,2952.3,2949.2,6.78150006]
[1763570168754,1.24622369,2952.2,2949.2,6.78150006]
[1763570168977,0.30526697,2952.1,2949.2,10.17225009]
[1763570169186,0.80506697,2952.0,2949.2,13.56300012]
[1763570169350,0.33923105,2951.9,2949.2,3.39075003]
[1763570169551,0.30526697,2951.8,2949.2,10.17225009]
[1763570169747,0.30526697,2951.7,2949.2,10.17225009]
[1763570169951,0.30526697,2951.6,2949.3,0.90699264]
[1763570170162,0.30526697,2951.6,2948.6,3.39137229]
[1763570170163,0.33923105,2951.5,2948.6,3.39144]
[1763570170364,0.33923105,2951.5,2946.8,3.39341857]
[1763570170365,0.405504,2951.1,2947.7,3.39243937]
[1763570170723,0.405504,2950.9,2947.9,8.01455637]
[1763570170893,0.33923105,2950.8,2947.9,8.01455637]
[1763570171056,0.30526697,2950.7,2948.0,0.90699264]
[1763570171393,0.30526697,2950.6,2948.0,0.90699264]
[1763570171564,0.30526697,2950.5,2948.0,0.90699264]
[1763570171767,0.30526697,2950.4,2947.8,6.7847208]
[1763570171985,0.80506697,2950.3,2947.2,6.78610206]
[1763570172185,0.30526697,2950.2,2947.3,0.90699264]
[1763570172398,0.30506942,2950.1,2947.3,0.90699264]
[1763570172610,0.30506942,2950.0,2948.2,0.90699264]
[1763570172911,0.30506942,2949.9,2947.7,0.405504]
[1763570173212,0.30506942,2949.8,2947.7,1.31249664]
[1763570173373,0.30506942,2949.7,2947.7,1.31249664]
[1763570173574,0.6876,2951.0,2948.7,1.31249664]
[1763570173788,0.30518676,2950.9,2948.7,1.31249664]
[1763570173987,0.30518676,2950.8,2948.9,0.90699264]
[1763570174207,0.30518676,2950.7,2948.9,0.90699264]
[1763570174417,0.30518676,2950.6,2949.0,0.43941379]
[1763570174632,0.30518676,2950.5,2949.2,1.31249664]
[1763570174820,0.30518676,2950.4,2949.2,1.31249664]
[1763570175017,0.4998,2951.3,2949.2,1.31249664]
[1763570175218,0.30546204,2951.2,2949.2,1.31249664]
[1763570175517,0.30546204,2951.1,2949.2,1.31249664]
[1763570175832,0.33942612,2951.0,2948.9,0.90699264]
[1763570176048,0.33942612,2951.0,2946.8,0.05]
[1763570176049,0.30546204,2950.9,2948.2,8.01455637]
[1763570176212,1.31249664,2950.5,2947.3,3.3929359]
[1763570176393,0.90699264,2950.0,2947.3,10.1788077]
[1763570176594,0.30546204,2949.9,2947.3,3.3929359]
[1763570176793,0.30546204,2949.8,2949.1,0.001]
[1763570177047,0.30546204,2949.7,2949.1,0.001]
[1763570177228,0.30546204,2949.6,2949.1,0.001]
[1763570177394,0.30466204,2949.5,2949.1,0.001]
[1763570177718,0.4998,2949.9,2949.1,0.001]
[1763570177719,0.30466204,2949.4,2949.1,0.001]
[1763570177906,0.1878,2949.2,2949.1,0.001]
[1763570178309,0.1878,2950.3,2949.1,0.001]
[1763570178524,0.4998,2950.2,2949.1,0.001]
[1763570178893,0.1878,2950.7,2949.1,0.001]
[1763570179710,0.4998,2950.6,2949.1,0.001]
[1763570180635,0.1878,2950.7,2949.1,0.001]
[1763570180938,0.87835195,2953.1,2949.7,1.31249664]
[1763570180939,0.1878,2951.8,2949.7,1.31249664]
[1763570181095,0.4998,2951.7,2949.7,0.90699264]
[1763570181295,0.4998,2951.7,2949.2,1.31249664]
[1763570181606,0.4998,2951.7,2949.1,8.01555637]
[1763570181607,0.4998,2951.7,2949.1,0.406504]
[1763570181810,0.90699264,2951.5,2949.1,0.001]
[1763570182049,0.90699264,2951.3,2949.1,0.001]
[1763570182354,0.8921549,2951.2,2949.1,0.001]
[1763570182652,1.3919549,2951.2,2949.1,0.001]
[1763570182945,0.1878,2951.8,2949.1,0.001]
[1763570182946,1.31249664,2950.9,2949.1,0.001]
[1763570183109,0.6876,2950.8,2949.1,0.001]
[1763570183525,0.4998,2950.7,2949.1,0.001]
[1763570184628,1.31249664,2950.5,2949.1,0.001]
[1763570184825,8.01455637,2950.6,2949.1,0.001]
[1763570185150,0.405504,2950.4,2949.1,0.001]
[1763570185350,2.25592828,2950.5,2949.1,0.001]
[1763570185554,0.4975,2950.4,2949.1,0.001]
[1763570188167,0.1885,2949.2,2949.1,0.001]
[1763570188453,0.4975,2950.4,2949.1,0.001]
[1763570188618,0.4975,2950.3,2949.1,0.001]
[1763570189527,0.30900823,2950.2,2949.1,0.001]
[1763570189732,0.30900823,2950.1,2949.1,0.001]
[1763570189917,0.30900823,2950.0,2949.1,0.001]
[1763570190262,0.30900823,2949.9,2949.1,0.001]
[1763570190555,0.30900823,2949.8,2949.1,0.001]
[1763570190737,0.30900823,2949.7,2949.1,0.001]
[1763570190940,1.63485324,2952.2,2949.1,0.001]
[1763570190941,0.30900823,2949.6,2949.1,0.001]
[1763570191138,0.30900823,2949.5,2949.1,0.001]
[1763570191340,0.30900823,2949.4,2949.1,0.001]
[1763570191541,0.30924496,2949.3,2949.1,0.001]
[1763570191746,0.4975,2950.3,2949.1,0.001]
[1763570192060,0.80668686,2950.2,2949.1,0.001]
[1763570192257,0.30918686,2950.1,2949.1,0.001]
[1763570192463,0.1885,2949.2,2949.1,0.001]
[1763570192662,0.90699264,2949.1,2946.8,3.39350879]
[1763570192820,0.1885,2948.0,2946.7,6.78723868]
[1763570193023,0.30918686,2947.9,2946.7,6.78723868]
[1763570193223,0.90699264,2949.1,2946.7,6.78723868]
[1763570193224,0.30918686,2947.8,2946.7,3.39361192]
[1763570193462,0.30918686,2947.7,2946.7,3.39361192]
[1763570193648,0.30918686,2947.6,2945.9,3.39454835]
[1763570193849,0.30918686,2947.5,2945.9,6.7890967]
[1763570194045,0.30918686,2947.4,2945.5,0.90699264]
[1763570194230,0.30918686,2947.3,2945.4,6.7902492]
[1763570194558,0.30918686,2947.2,2945.5,0.90699264]
[1763570194762,0.30918686,2947.5,2945.6,8.01455637]
[1763570194924,0.80558139,2948.1,2945.7,0.405504]
[1763570195121,0.30808139,2948.0,2945.4,6.7902492]
[1763570195363,0.30808139,2947.9,2946.6,1.81697882]
[1763570195667,1.21507403,2947.8,2946.3,1.81697882]
[1763570195849,8.01455637,2947.4,2946.0,1.81697882]
[1763570196050,0.30808139,2947.3,2945.9,1.81697882]
[1763570196262,0.30808139,2947.2,2945.9,1.81697882]
[1763570196569,0.30808139,2947.2,2944.9,0.90699264]
[1763570196570,0.30808139,2947.1,2945.8,1.81697882]
[1763570196872,0.1885,2947.1,2946.1,1.81697882]
[1763570197440,0.30722298,2947.2,2946.6,0.001]
[1763570197639,0.30742824,2947.2,2946.6,0.001]
[1763570197867,0.1813,2947.1,2946.6,0.001]
[1763570198184,0.4935,2947.8,2946.6,0.001]
[1763570198481,0.30740258,2947.7,2946.6,0.001]
[1763570198842,0.80090258,2947.7,2946.6,0.001]
[1763570199158,0.30740258,2947.6,2946.6,0.001]
[1763570199847,0.80090258,2946.6,2944.6,3.39596231]
[1763570200153,0.30740258,2946.5,2944.4,2.42263843]
[1763570200359,0.405504,2946.5,2944.3,0.69657112]
[1763570200573,0.405504,2946.5,2944.0,3.39671647]
[1763570200574,1.31249664,2946.2,2944.0,3.39671647]
[1763570200783,0.30679575,2946.1,2943.9,6.79367055]
[1763570200959,0.80029575,2946.1,2943.9,10.19052506]
[1763570201145,0.80029575,2946.1,2944.1,2.42263843]
[1763570201480,0.4935,2946.0,2944.1,2.42263843]
[1763570201648,0.30640883,2946.6,2944.0,2.42263843]
[1763570201847,0.4935,2946.6,2944.3,2.42263843]
[1763570202076,0.79990883,2946.6,2944.5,0.90699264]
[1763570202272,1.21340147,2946.5,2944.2,3.39649518]
[1763570202547,0.4935,2946.3,2944.2,6.79300356]
[1763570202779,0.4935,2946.3,2944.3,0.90699264]
[1763570202979,0.4935,2946.3,2944.3,3.32963107]
[1763570203182,0.1813,2946.7,2944.5,2.42263843]
[1763570203488,0.6748,2946.7,2944.6,0.405504]
[1763570203692,0.1813,2947.0,2944.8,3.73513507]
[1763570203984,0.1813,2947.0,2945.2,0.90699264]
[1763570204193,0.1885,2949.2,2945.3,0.405504]
[1763570204484,0.1885,2949.2,2946.4,0.90699264]
[1763570204485,0.4935,2948.3,2946.4,0.90699264]
[1763570204680,0.4935,2948.3,2946.4,2.42263843]
[1763570204883,0.4935,2948.3,2946.1,0.90699264]
[1763570204884,0.4935,2948.3,2946.1,3.32963107]
[1763570205182,0.4935,2948.3,2945.9,2.42263843]
[1763570205486,0.4935,2948.3,2946.1,2.42263843]
[1763570205997,0.03396408,2948.2,2946.0,2.17263843]
[1763570206292,0.03396408,2948.2,2945.9,0.90699264]
[1763570206442,0.4935,2948.3,2946.2,1.31249664]
[1763570206646,0.4935,2949.1,2946.7,1.31249664]
[1763570206949,0.1885,2949.6,2947.2,1.31249664]
[1763570207145,0.1885,2949.6,2947.7,1.31249664]
[1763570207370,0.4935,2949.5,2947.5,0.405504]
[1763570207789,0.4935,2949.5,2947.3,0.405504]
[1763570207983,0.4935,2949.5,2947.5,1.31249664]
[1763570208183,0.1885,2949.6,2947.8,0.405504]
[1763570208385,0.4935,2950.0,2947.8,0.405504]
[1763570209200,0.4935,2950.0,2948.0,0.405504]
[1763570209398,0.21526408,2950.8,2948.2,0.90699264]
[1763570209548,0.4935,2950.0,2947.8,0.90699264]
[1763570209747,0.4935,2950.0,2947.9,0.405504]
[1763570210290,0.4935,2950.0,2948.0,10.17639075]
[1763570210451,0.4935,2950.0,2948.0,6.1959705]
[1763570210887,0.03396408,2949.9,2947.4,3.01097459]
[1763570211047,0.03396408,2949.9,2947.5,3.39270568]
[1763570211253,0.4935,2949.8,2947.5,6.78541136]
[1763570211453,0.52746408,2949.8,2947.5,6.78541136]
[1763570211759,0.4935,2949.8,2947.6,0.90699264]
[1763570211979,8.04852045,2949.7,2947.0,3.01097459]
[1763570212191,8.04852045,2949.7,2947.0,6.7865626]
[1763570212192,8.01455637,2949.7,2947.0,6.7865626]
[1763570212379,1.52560564,2949.6,2947.0,6.7865626]
[1763570212792,0.4935,2949.5,2947.1,0.90699264]
[1763570212995,0.4935,2949.5,2947.0,10.1798439]
[1763570213170,0.4935,2949.5,2947.1,0.90699264]
[1763570214180,0.4935,2949.5,2947.3,0.90699264]
[1763570214410,0.4935,2949.5,2947.6,0.90699264]
[1763570215192,0.4935,2949.5,2947.5,6.64377199]
[1763570215193,0.80028896,2949.5,2947.3,0.90699264]
[1763570215507,0.3066622,2949.4,2947.4,0.0339282]
[1763570215686,0.1813,2949.6,2947.2,0.405504]
[1763570215884,0.4935,2949.4,2947.4,0.405504]
[1763570216086,0.4935,2949.4,2947.5,2.41227135]
[1763570216313,0.4935,2949.4,2947.5,3.39269895]
[1763570216469,0.4935,2949.4,2947.5,6.78540463]
[1763570217176,0.4935,2949.4,2947.6,0.90699264]
[1763570218008,0.4935,2949.4,2947.8,2.41227135]
[1763570218215,0.4935,2949.4,2948.1,0.90699264]
[1763570218398,0.002,2949.7,2948.1,0.90699264]
[1763570218710,0.002,2949.7,2948.2,2.41227135]
[1763570219014,0.002,2949.7,2948.2,3.31926399]
[1763570219312,0.002,2949.7,2948.3,0.90699264]
[1763570219522,0.4935,2949.6,2947.5,2.41227135]
[1763570219726,0.4935,2949.6,2947.6,6.78514687]
[1763570219882,0.1813,2949.5,2947.6,3.39255629]
[1763570220082,6.64377199,2949.4,2947.2,3.39305103]
[1763570220320,6.64377199,2949.4,2947.0,0.001]
[1763570220321,1.21470353,2949.3,2947.0,3.39419807]
[1763570220531,0.30771089,2949.2,2947.1,0.90699264]
[1763570220688,0.4935,2949.2,2947.1,2.41227135]
[1763570221104,0.4935,2949.2,2947.1,3.39316616]
[1763570221306,0.4935,2949.2,2947.1,10.17949848]
[1763570221506,0.4935,2949.2,2947.1,6.78633232]
[1763570221682,0.4935,2949.2,2947.0,3.1063066]
[1763570221880,0.405504,2949.1,2947.0,0.69403525]
[1763570222093,0.4935,2949.0,2947.0,4.08731434]
[1763570222297,0.4935,2949.0,2947.0,10.87387694]
[1763570222527,0.4935,2949.0,2947.4,2.41227135]
[1763570222738,0.4935,2949.0,2947.2,2.41227135]
[1763570222942,0.4935,2949.0,2947.3,2.41227135]
[1763570223148,0.4935,2949.0,2947.0,10.87387694]
[1763570223149,6.64377199,2948.9,2947.0,0.69403525]
[1763570223298,0.90699264,2948.3,2947.0,0.001]
[1763570223497,0.30772935,2948.2,2947.0,0.001]
[1763570223711,0.1813,2948.2,2947.0,3.42819808]
[1763570223934,0.1813,2948.2,2947.0,6.78754657]
[1763570224436,0.1813,2948.2,2947.0,0.001]
[1763570224594,0.4935,2948.1,2947.0,0.001]
[1763570224993,0.1813,2947.1,2947.0,0.001]
[1763570225241,1.40049264,2948.1,2947.0,0.001]
[1763570225242,0.30752102,2948.0,2947.0,0.001]
[1763570225445,0.4935,2947.9,2947.0,0.001]
[1763570225908,0.1813,2947.1,2947.0,0.001]
[1763570226235,0.3075804,2947.8,2947.0,0.001]
[1763570226533,0.1813,2947.1,2947.0,0.001]
[1763570227051,0.4935,2947.5,2947.0,0.001]
[1763570227414,0.4927,2947.5,2947.0,0.001]
[1763570227926,0.1836,2947.1,2947.0,0.001]
[1763570228308,0.30799079,2947.8,2947.0,0.001]
[1763570228502,0.1836,2947.1,2947.0,0.001]
[1763570229118,0.1836,2947.1,2945.1,3.3954278]
[1763570229317,0.90699264,2946.9,2945.0,6.79115169]
[1763570229827,0.1836,2947.1,2945.1,0.90699264]
[1763570229828,0.4584,2946.8,2945.1,0.90699264]
[1763570230135,0.62401579,2947.1,2945.1,3.31926399]
[1763570230335,0.62401579,2947.1,2945.3,0.90699264]
[1763570230503,0.16561579,2947.1,2945.3,0.90699264]
[1763570231049,0.62401579,2947.1,2945.4,2.41227135]
[1763570231229,0.62401579,2947.1,2945.3,3.31926399]
[1763570231405,0.16561579,2947.1,2945.5,2.41227135]
[1763570231606,1.08829264,2948.2,2946.2,0.90699264]
[1763570231607,0.4584,2948.0,2946.2,0.90699264]
[1763570231829,0.1813,2948.2,2946.5,0.405504]
[1763570232031,0.1836,2948.8,2947.0,2.41227135]
[1763570232242,0.1836,2948.8,2946.8,0.90699264]
[1763570232243,0.002,2949.7,2948.2,0.90699264]
[1763570232447,0.002,2949.7,2948.6,6.64377199]
[1763570232611,0.002,2949.7,2948.7,3.31926399]
[1763570232950,0.002,2949.7,2949.2,3.31926399]
[1763570233150,0.1836,2951.2,2949.6,9.05604334]
[1763570233306,0.1836,2951.2,2949.7,3.31926399]
[1763570233512,0.4584,2951.1,2949.7,2.41227135]
[1763570233706,0.4584,2951.1,2949.0,3.31926399]
[1763570234007,0.90699264,2950.8,2948.4,2.41227135]
[1763570234210,0.90699264,2950.8,2948.3,6.78357018]
[1763570234211,0.98434387,2950.7,2948.3,9.19584153]
[1763570234412,0.30837979,2950.6,2948.3,9.19584153]
[1763570234668,0.4584,2950.5,2948.3,9.19584153]
[1763570234870,0.4584,2950.5,2948.4,3.31926399]
[1763570235079,0.4584,2950.5,2948.5,2.41227135]
[1763570235233,0.4584,2950.5,2948.8,2.41227135]
[1763570235434,0.4584,2950.5,2948.9,2.41227135]
[1763570235634,0.1836,2950.7,2949.1,2.41227135]
[1763570235944,0.642,2950.7,2949.0,2.41227135]
[1763570236356,0.4584,2950.6,2949.1,0.90699264]
[1763570236560,0.1836,2950.7,2949.1,3.31926399]
[1763570236767,0.4584,2950.6,2949.1,0.90699264]
[1763570237167,0.4584,2951.2,2949.2,0.405504]
[1763570237367,0.4584,2951.2,2949.3,0.90699264]
[1763570237676,0.4584,2951.2,2949.4,2.41227135]
[1763570237986,0.4584,2951.2,2949.3,0.90699264]
[1763570238482,6.64377199,2950.5,2948.7,2.41227135]
[1763570238646,0.1836,2949.4,2948.4,2.41227135]
[1763570238835,0.1836,2949.4,2948.0,9.19653185]
[1763570239173,0.642,2949.4,2947.9,5.80443925]
[1763570239374,0.4584,2949.3,2947.5,2.41227135]
[1763570239542,0.4584,2949.3,2947.1,10.61907456]
[1763570239543,0.4584,2949.3,2947.4,6.78562116]
[1763570239747,0.1836,2949.4,2947.4,9.19789251]
[1763570239952,0.4584,2949.8,2948.0,2.41227135]
[1763570240274,0.4584,2949.8,2948.1,2.41227135]
[1763570240457,0.4584,2950.3,2948.4,10.17501015]
[1763570240633,0.4584,2950.3,2948.4,6.7833401]
[1763570240835,0.4584,2950.3,2948.3,4.2987327]
[1763570241183,6.64377199,2949.9,2947.5,6.78536499]
[1763570241474,0.30813153,2949.8,2947.6,0.90699264]
[1763570241770,1.70748825,2950.2,2947.6,0.90699264]
[1763570241969,0.30813153,2950.1,2947.6,0.90699264]
[1763570242183,0.20471291,2950.0,2947.6,0.90699264]
[1763570242490,0.405504,2949.7,2947.3,6.78587158]
[1763570242643,0.74759961,2949.7,2947.4,0.90699264]
[1763570242845,0.4584,2949.6,2947.4,0.90699264]
[1763570243087,0.4584,2950.1,2948.1,0.90699264]
[1763570243268,0.4584,2950.1,2948.2,2.81777535]
[1763570244352,0.4584,2950.1,2948.5,0.90699264]
[1763570245399,0.4862,2950.7,2948.6,0.405504]
[1763570245545,0.1836,2950.8,2948.5,0.90699264]
[1763570245546,0.4862,2950.1,2948.5,0.90699264]
[1763570246787,0.4862,2950.1,2948.3,3.39174551]
[1763570246946,0.4862,2950.1,2948.4,0.90699264]
[1763570247688,0.4862,2950.1,2947.7,6.78495096]
[1763570247847,0.4862,2950.1,2947.8,0.90699264]
[1763570247848,0.79370776,2950.1,2947.8,0.90699264]
[1763570248048,0.4862,2950.0,2947.8,0.90699264]
[1763570248261,0.4862,2950.0,2947.7,6.78495096]
[1763570248463,0.4862,2950.0,2947.6,6.78518116]
[1763570248660,0.405504,2949.9,2947.5,7.12410395]
[1763570248949,0.405504,2949.9,2947.5,6.78540395]
[1763570249153,0.4862,2949.8,2947.5,6.78540395]
[1763570249353,0.4862,2949.8,2947.6,0.90699264]
[1763570249780,0.1838,2949.7,2947.6,0.90699264]
[1763570250155,0.4862,2949.6,2947.6,0.90699264]
[1763570250577,0.4862,2949.6,2947.8,0.90699264]
[1763570252091,7.04927599,2949.5,2947.1,0.66436636]
[1763570252254,0.405504,2948.9,2946.4,2.41227135]
[1763570252453,0.4862,2948.4,2946.2,6.7884054]
[1763570252683,0.4862,2948.4,2946.3,3.39408749]
[1763570252872,0.4862,2948.4,2946.4,0.90699264]
[1763570253077,7.12997199,2948.4,2946.2,3.39412167]
[1763570253451,0.405504,2948.2,2945.8,3.39466358]
[1763570253581,0.405504,2948.2,2945.8,6.78932716]
[1763570253782,0.67,2948.1,2945.9,0.90699264]
[1763570253998,0.30746028,2948.0,2945.9,0.90699264]
[1763570254294,0.4862,2948.0,2945.8,10.18399074]
[1763570254499,0.1838,2949.5,2946.9,6.64377199]
[1763570254685,0.4862,2949.1,2947.0,10.97797874]
[1763570254888,0.4862,2949.1,2947.0,0.90699264]
[1763570255256,0.4862,2949.1,2946.9,0.90699264]
[1763570255470,0.405504,2949.0,2946.9,0.90699264]
[1763570255672,0.7932795,2949.1,2946.9,0.90699264]
[1763570255872,0.7932795,2949.0,2946.4,11.08890954]
[1763570256194,0.7932795,2949.0,2946.5,0.90699264]
[1763570256395,0.4862,2948.9,2946.5,0.90699264]
[1763570256564,0.4862,2948.9,2946.8,0.90699264]
[1763570258327,7.04927599,2948.8,2946.6,0.90699264]
[1763570258483,7.04927599,2948.8,2946.5,2.41227135]
[1763570258484,0.7535476,2948.7,2946.5,0.90699264]
[1763570258819,0.4757,2948.6,2946.7,0.90699264]
[1763570259514,0.4757,2948.6,2946.6,6.78748386]
[1763570259715,0.4757,2948.6,2946.7,0.90699264]
[1763570259925,0.4757,2948.6,2946.8,0.03393511]
[1763570260225,0.4757,2948.6,2946.9,3.31926399]
[1763570260410,0.4757,2948.6,2946.9,0.90699264]
[1763570260612,0.4757,2948.6,2946.9,11.08718199]
[1763570260787,0.4757,2948.6,2947.0,0.90699264]
[1763570260989,0.4757,2948.6,2947.0,3.31926399]
[1763570262219,0.4757,2948.6,2947.0,0.90699264]
[1763570262724,0.4757,2948.6,2947.2,0.90699264]
[1763570262928,0.4757,2948.6,2947.1,3.39316616]
[1763570263235,0.4757,2948.6,2947.2,0.90699264]
[1763570263536,0.4757,2949.2,2947.7,0.90699264]
[1763570263892,0.1838,2949.5,2947.6,2.41227135]
[1763570264221,0.1838,2949.5,2947.7,0.4775]
[1763570264222,0.13660201,2949.4,2947.7,0.4775]
[1763570264621,0.13660201,2949.4,2947.8,0.3183]
[1763570264826,0.13660201,2949.4,2948.0,0.90699264]
[1763570265898,0.1847,2950.2,2948.4,0.90699264]
[1763570266097,0.1847,2950.2,2948.2,0.90699264]
[1763570266318,0.4757,2949.9,2948.1,0.90699264]
[1763570267025,0.4757,2949.9,2948.3,0.90699264]
[1763570267536,6.67773607,2949.8,2948.1,0.90699264]
[1763570267694,6.64377199,2949.3,2947.7,0.66339301]
[1763570267893,0.97406603,2949.2,2947.5,3.39270568]
[1763570268108,0.4757,2949.6,2947.6,0.90699264]
[1763570268490,0.8193803,2949.6,2947.5,6.78541136]
[1763570268907,0.4757,2949.5,2947.6,0.90699264]
[1763570269106,0.78546589,2949.5,2947.6,1.22529264]
[1763570269305,0.4757,2949.5,2947.6,1.22529264]
[1763570269515,0.4757,2949.4,2947.6,1.22529264]
[1763570270906,0.7854996,2949.8,2947.9,0.90699264]
[1763570271107,0.4757,2949.7,2948.0,0.3183]
[1763570271627,0.002,2950.0,2948.0,0.3183]
[1763570271628,0.002,2950.0,2948.2,0.405504]
[1763570271833,0.002,2950.0,2948.4,1.31249664]
[1763570272228,0.002,2950.0,2948.5,0.3183]
[1763570272750,0.002,2950.0,2948.6,1.31249664]
[1763570272933,0.002,2950.0,2948.7,0.3183]
[1763570273111,0.002,2950.0,2948.9,0.90699264]
[1763570273833,0.002,2950.0,2949.0,0.3183]
[1763570275053,0.002,2950.0,2949.0,3.39097999]
[1763570275221,0.4757,2949.9,2948.9,0.90699264]
[1763570276345,0.4757,2949.9,2948.8,0.90699264]
[1763570276547,0.4757,2949.9,2948.7,0.90699264]
[1763570276713,0.002,2950.0,2948.7,0.90699264]
[1763570276913,0.002,2950.0,2948.8,0.3183]
[1763570277147,0.002,2950.0,2949.0,0.90699264]
[1763570277312,0.0012,2950.0,2949.0,0.90699264]
[1763570277518,0.0012,2950.0,2949.1,0.4775]
[1763570279159,0.1847,2949.9,2949.3,0.90699264]
[1763570280228,0.4757,2949.8,2948.8,0.1592]
[1763570280432,0.4757,2949.8,2947.8,6.7847208]
[1763570280647,0.4757,2949.8,2947.9,0.3183]
[1763570280840,0.4757,2949.8,2947.9,0.90699264]
[1763570281032,0.4757,2949.8,2948.0,3.39213025]
[1763570281336,0.78521143,2949.8,2947.6,6.78518116]
[1763570281537,0.78521143,2949.7,2947.5,4.06864058]
[1763570281832,0.78521143,2949.7,2947.5,7.77965627]
[1763570281833,0.30950382,2949.6,2947.5,7.77965627]
[1763570282023,0.78520382,2949.6,2947.6,0.90699264]
[1763570282358,0.4757,2949.6,2947.6,0.90699264]
[1763570282524,0.1847,2949.9,2948.2,0.90699264]
[1763570282721,0.0012,2950.0,2948.7,0.90699264]
[1763570282925,0.0012,2950.0,2949.1,0.3387]
[1763570283226,0.0012,2950.0,2948.7,0.3183]
[1763570283532,0.0012,2950.0,2948.6,3.01097459]
[1763570283533,0.0012,2950.0,2948.9,0.90699264]
[1763570283937,0.0012,2950.0,2949.0,0.3183]
[1763570284163,0.0012,2950.0,2949.0,0.657]
[1763570284460,0.4769,2950.0,2948.9,0.90699264]
[1763570284663,0.4769,2950.0,2948.5,3.73022017]
[1763570284823,0.4769,2950.0,2948.6,3.39144]
[1763570285153,0.4769,2950.0,2948.9,0.90699264]
[1763570285534,0.0012,2950.0,2948.9,1.22529264]
[1763570285737,0.0012,2950.0,2949.0,0.3387]
[1763570286044,0.0012,2950.0,2949.0,0.657]
[1763570286443,0.0012,2950.0,2948.8,0.3387]
[1763570286642,0.0012,2950.0,2948.9,0.03391094]
[1763570286849,0.0012,2950.0,2948.9,0.3183]
[1763570287379,0.1847,2949.9,2949.1,0.90699264]
[1763570289173,0.0012,2950.0,2949.4,0.90699264]
[1763570289333,0.0012,2950.0,2949.6,0.90699264]
[1763570289871,0.0012,2950.0,2949.3,3.39063506]
[1763570290037,0.0012,2950.0,2949.4,0.90699264]
[1763570290242,0.0012,2950.0,2949.4,1.22529264]